bitfinex/quotes_ETHUSD_20240819
["timestamp","ask_amount","ask_price","bid_price","bid_amount"]
[1724034295928,0.05371359,2637.7,2637.4,1.617]
[1724034296208,4.97457,2638.0,2637.4,1.617]
[1724034296409,9.94337,2638.2,2637.8,1.617]
[1724034296610,7.29,2638.2,2637.8,1.617]
[1724034296908,0.05419284,2638.1,2637.8,1.617]
[1724034298518,0.05419284,2638.1,2637.9,2.4848]
[1724034301978,0.05419284,2638.1,2638.0,1.617]
[1724034302188,0.05419284,2638.1,2638.0,3.9787]
[1724034302410,7.29,2638.5,2638.1,2.3617]
[1724034302690,9.94303,2638.5,2638.3,2.3617]
[1724034303282,11.20475037,2638.5,2638.3,2.3617]
[1724034303619,8.55172037,2638.5,2638.3,2.3617]
[1724034303779,7.29,2638.5,2638.3,2.3617]
[1724034303977,2.65312,2638.4,2638.3,2.3617]
[1724034304218,2.70728379,2638.4,2638.1,2.3617]
[1724034304389,3.97231117,2638.4,2637.8,3.9787]
[1724034304915,2.65322,2638.3,2637.8,3.9787]
[1724034305319,0.05414789,2638.2,2637.8,6.63241]
[1724034305678,3.91814738,2638.4,2637.8,6.63241]
[1724034305916,0.05422791,2638.3,2637.8,6.63101576]
[1724034306094,1.17504265,2638.3,2637.8,6.63101576]
[1724034306677,1.17504265,2638.3,2638.0,1.617]
[1724034307619,1.17504265,2638.3,2638.1,2.4509]
[1724034310108,1.17504265,2638.3,2638.0,1.617]
[1724034310326,0.38281627,2638.2,2637.8,1.617]
[1724034310535,3.82833265,2638.3,2637.9,2.3757]
[1724034310804,0.05422885,2638.1,2637.9,2.3757]
[1724034311024,3.77410474,2638.3,2637.9,2.3757]
[1724034311224,0.05414882,2638.0,2637.9,2.3757]
[1724034311429,0.37741047,2638.2,2637.9,2.3757]
[1724034311930,0.05422885,2638.1,2637.9,2.3757]
[1724034314165,0.05422885,2638.1,2638.0,1.617]
[1724034314574,0.05422885,2638.1,2638.0,6.63312]
[1724034314855,7.29,2638.5,2638.0,6.63312]
[1724034315014,8.521863,2638.5,2638.2,1.617]
[1724034316735,11.174903,2638.5,2638.0,2.3626]
[1724034317044,1.1174903,2638.4,2638.1,1.617]
[1724034317605,2.65324,2638.3,2638.0,2.3626]
[1724034318137,2.6534,2638.2,2637.8,1.617]
[1724034318310,3.08388701,2638.2,2637.8,1.617]
[1724034318718,0.43048701,2638.2,2637.8,1.617]
[1724034319643,0.43048701,2638.2,2638.0,1.617]
[1724034319838,0.05341398,2638.2,2638.0,1.617]
[1724034320043,2.65324,2638.3,2638.0,1.617]
[1724034320340,0.05341398,2638.2,2638.0,1.617]
[1724034320720,2.65324,2638.3,2638.0,1.617]
[1724034320922,0.05333396,2638.1,2638.0,1.617]
[1724034321130,2.65324,2638.3,2638.0,1.617]
[1724034321335,0.0533285,2638.1,2638.0,1.617]
[1724034321516,2.65324,2638.3,2638.0,3.9255]
[1724034321843,4.02462003,2638.3,2638.0,3.9255]
[1724034322011,0.05340851,2638.2,2638.0,3.9255]
[1724034322210,4.02462003,2638.3,2638.0,3.9255]
[1724034322406,0.05340851,2638.2,2638.0,3.9255]
[1724034322709,4.02462003,2638.3,2638.0,3.9255]
[1724034322911,0.05340851,2638.2,2638.0,3.9255]
[1724034323257,4.02462003,2638.3,2638.0,3.9255]
[1724034323258,0.0533285,2638.1,2638.0,3.9255]
[1724034323552,4.02462003,2638.3,2638.0,3.9255]
[1724034323708,0.0533285,2638.1,2638.0,3.9255]
[1724034323909,4.02462003,2638.3,2638.0,3.9255]
[1724034324110,0.45587051,2638.2,2638.0,3.9255]
[1724034324349,0.45587051,2638.2,2638.0,2.3085]
[1724034324661,0.45587051,2638.2,2637.9,1.617]
[1724034327164,0.45587051,2638.2,2638.1,3.8682]
[1724034327165,0.05340851,2638.2,2638.1,3.8682]
[1724034327462,9.94306,2638.5,2638.1,3.8682]
[1724034327663,0.05340968,2638.2,2638.1,2.2512]
[1724034327870,0.05340968,2638.2,2638.1,6.52162]
[1724034328043,7.29,2638.5,2638.1,6.52162]
[1724034328242,7.29,2638.5,2638.4,1.617]
[1724034328441,8.33782659,2638.5,2638.4,1.617]
[1724034330865,10.99084659,2638.5,2638.2,1.617]
[1724034331071,3.70084659,2638.5,2638.2,1.617]
[1724034331364,1.04782659,2638.5,2638.2,1.617]
[1724034331667,0.05354159,2638.5,2638.2,1.617]
[1724034331877,2.65285,2638.7,2638.2,1.617]
[1724034332213,0.05362159,2638.6,2638.2,1.617]
[1724034332380,2.70654159,2638.6,2638.2,1.617]
[1724034334384,0.05362159,2638.6,2638.2,1.617]
[1724034334588,0.05362159,2638.6,2638.4,1.617]
[1724034334995,2.65273,2638.8,2638.4,1.617]
[1724034335209,0.05355529,2638.5,2638.4,1.617]
[1724034335684,3.91227,2638.8,2638.4,1.617]
[1724034335888,0.05353513,2638.7,2638.4,1.617]
[1724034336093,3.91227,2638.8,2638.4,1.617]
[1724034336318,0.05358681,2638.7,2638.4,1.617]
[1724034336538,3.91227,2638.8,2638.4,1.617]
[1724034336740,0.05350682,2638.6,2638.4,1.617]
[1724034336943,3.91227,2638.8,2638.4,1.617]
[1724034337139,0.05342682,2638.5,2638.4,1.617]
[1724034337310,2.65282,2638.7,2638.4,1.617]
[1724034337626,0.05350682,2638.6,2638.4,1.617]
[1724034342134,0.05350682,2638.6,2638.4,3.8929]
[1724034343538,5.30538,2638.9,2638.4,3.8929]
[1724034343698,0.05342839,2638.5,2638.4,3.8929]
[1724034343901,2.65273,2638.8,2638.4,3.8929]
[1724034344211,0.05342839,2638.5,2638.4,3.8929]
[1724034344695,4.15042,2638.8,2638.4,3.8929]
[1724034344895,0.05342839,2638.5,2638.4,3.8929]
[1724034345127,2.65273,2638.8,2638.4,3.8929]
[1724034345340,0.05342839,2638.5,2638.4,3.8929]
[1724034345535,4.15042,2638.8,2638.4,3.8929]
[1724034345697,0.05342839,2638.5,2638.4,3.8929]
[1724034345896,4.15042,2638.8,2638.4,3.8929]
[1724034346199,0.05342839,2638.5,2638.4,3.8929]
[1724034346737,4.15042,2638.8,2638.4,3.8929]
[1724034347031,0.05342839,2638.5,2638.4,3.8929]
[1724034347536,4.15042,2638.8,2638.4,3.8929]
[1724034347714,0.05342839,2638.5,2638.4,3.8929]
[1724034347921,4.15042,2638.8,2638.4,3.8929]
[1724034348162,0.05342839,2638.5,2638.4,3.8929]
[1724034348443,2.65267,2638.9,2638.4,3.8929]
[1724034348758,5.30536,2638.9,2638.4,3.8929]
[1724034348937,2.70665277,2638.8,2638.4,3.8929]
[1724034353011,2.70665277,2638.8,2638.4,1.617]
[1724034353012,2.65283,2638.7,2638.4,1.617]
[1724034353240,0.05373679,2638.6,2638.4,1.617]
[1724034355859,0.05373679,2638.6,2638.5,2.4052]
[1724034356063,2.65267,2638.9,2638.5,2.4052]
[1724034356259,0.05351985,2638.6,2638.5,2.4052]
[1724034356465,2.65267,2638.9,2638.5,2.4052]
[1724034356622,0.05351985,2638.6,2638.5,2.4052]
[1724034356850,4.212182,2638.9,2638.5,2.4052]
[1724034357033,0.05382391,2638.8,2638.5,2.4052]
[1724034357551,2.70660391,2638.8,2638.5,2.4052]
[1724034359152,2.70660391,2638.8,2638.4,1.617]
[1724034359317,0.69187859,2638.7,2638.4,1.617]
[1724034359519,3.3985866,2638.7,2638.4,1.617]
[1724034361334,2.70670801,2638.7,2638.4,1.617]
[1724034364389,0.05388801,2638.7,2638.6,1.617]
[1724034364552,0.05388801,2638.7,2638.6,10.97052349]
[1724034364827,7.29,2639.0,2638.9,4.98682]
[1724034365030,9.94208,2639.5,2638.9,6.60382]
[1724034365368,10.715713,2639.5,2639.1,1.617]
[1724034366099,2.45347422,2639.9,2639.3,1.617]
[1724034366269,2.65137,2640.2,2639.8,1.617]
[1724034366438,2.65137,2640.2,2640.0,1.617]
[1724034366793,0.265137,2640.1,2640.0,1.617]
[1724034366934,2.65124,2640.3,2640.0,1.617]
[1724034367141,2.65132,2640.2,2640.0,1.617]
[1724034367553,2.65114,2640.4,2640.0,1.617]
[1724034367769,0.51046142,2640.3,2640.0,1.617]
[1724034368143,0.04523237,2640.2,2640.0,1.617]
[1724034369089,0.51046142,2640.3,2639.6,7.63789]
[1724034369254,0.31616014,2640.2,2639.6,4.98604]
[1724034369590,0.31616014,2640.2,2639.9,1.617]
[1724034369591,0.04536212,2640.1,2639.9,1.617]
[1724034372121,2.65114,2640.4,2639.9,1.617]
[1724034372410,3.181348,2640.4,2640.1,1.617]
[1724034374208,2.65121,2640.3,2640.1,1.617]
[1724034374385,2.65121,2640.3,2639.6,4.98603]
[1724034374386,2.65121,2640.3,2639.9,1.617]
[1724034374717,3.2344658,2640.3,2639.9,1.617]
[1724034376205,0.04544524,2640.2,2639.9,1.617]
[1724034376550,3.2344658,2640.3,2639.9,1.617]
[1724034376756,0.04536534,2640.1,2639.9,1.617]
[1724034376980,3.2344658,2640.3,2639.9,1.617]
[1724034377187,0.58856058,2640.2,2639.9,1.617]
[1724034377493,0.63400582,2640.2,2639.9,1.617]
[1724034378990,0.04544524,2640.2,2639.9,1.617]
[1724034379308,2.65114,2640.4,2640.1,1.617]
[1724034382397,2.65092,2640.6,2640.1,1.617]
[1724034382707,5.30191,2640.6,2640.1,1.617]
[1724034383019,0.830191,2640.5,2640.1,1.617]
[1724034383516,3.481211,2640.5,2640.1,1.617]
[1724034385273,0.830191,2640.5,2640.1,1.617]
[1724034385920,3.481221,2640.5,2640.1,1.617]
[1724034388222,2.65112,2640.4,2640.1,1.617]
[1724034388507,0.6132341,2640.3,2640.1,1.617]
[1724034388919,0.6132341,2640.3,2639.6,2.65186]
[1724034388920,3.2645141,2640.3,2639.9,1.617]
[1724034389124,0.56837141,2640.2,2639.9,1.617]
[1724034390186,0.56837141,2640.2,2639.7,2.4892]
[1724034390388,0.56837141,2640.2,2639.9,1.617]
[1724034391697,0.56837141,2640.2,2639.3,2.4916]
[1724034391903,2.65179,2639.8,2639.4,1.617]
[1724034392541,2.65179,2639.8,2639.3,2.4916]
[1724034392542,2.65171,2639.9,2639.6,1.617]
[1724034393134,3.182026,2639.9,2639.6,1.617]
[1724034394123,3.182006,2639.9,2639.6,1.617]
[1724034395225,3.182006,2639.9,2639.7,2.4916]
[1724034396135,2.65124,2640.3,2639.8,1.617]
[1724034398940,2.6512,2640.4,2640.0,1.617]
[1724034399135,2.65119,2640.4,2640.0,1.617]
[1724034399448,2.65122,2640.3,2640.0,1.617]
[1724034399905,2.65131,2640.2,2639.8,1.617]
[1724034400107,2.65157,2640.0,2639.7,2.4916]
[1724034400440,2.65157,2640.0,2639.2,2.65226]
[1724034400441,2.65173,2639.8,2639.6,1.617]
[1724034400941,0.265157,2639.9,2639.6,1.617]
[1724034401244,2.65154,2640.0,2639.6,1.617]
[1724034401640,2.65136,2640.2,2639.8,1.617]
[1724034402843,2.65142,2640.1,2639.8,1.617]
[1724034403045,3.2347221,2640.1,2639.8,1.617]
[1724034403236,3.181471,2640.3,2640.0,1.617]
[1724034403567,2.65116,2640.4,2640.0,1.617]
[1724034403779,2.916396,2640.3,2639.9,2.3648]
[1724034403939,2.65132,2640.2,2639.8,1.617]
[1724034404635,2.65147,2640.1,2639.8,1.617]
[1724034404829,3.2082606,2640.1,2639.8,1.617]
[1724034405043,3.2082606,2640.1,2639.7,2.3648]
[1724034405254,3.2082606,2640.1,2639.8,1.617]
[1724034405430,0.5567906,2640.1,2639.8,1.617]
[1724034406374,0.265116,2640.3,2639.8,1.617]
[1724034406676,2.916366,2640.3,2639.8,1.617]
[1724034406867,2.916366,2640.3,2639.7,5.01661]
[1724034406868,2.65143,2640.1,2639.7,2.3648]
[1724034407038,2.65143,2640.1,2639.7,3.9818]
[1724034407422,2.65143,2640.1,2639.6,2.3648]
[1724034407623,2.65143,2640.1,2639.6,3.9818]
[1724034407860,0.29430666,2640.0,2639.6,3.9818]
[1724034409352,2.65125,2640.3,2639.8,1.617]
[1724034410139,2.65125,2640.3,2639.9,2.2717]
[1724034412275,2.65104,2640.5,2639.9,2.2717]
[1724034412430,2.65111,2640.4,2639.9,2.2717]
[1724034413081,3.325404,2640.5,2639.9,4.92328]
[1724034414043,2.65112,2640.4,2639.9,4.92328]
[1724034415534,2.65112,2640.4,2639.9,2.2717]
[1724034419576,0.674364,2640.5,2639.9,4.92331]
[1724034419896,2.65112,2640.4,2640.1,2.4256]
[1724034420173,3.2836684,2640.4,2640.1,2.4256]
[1724034421776,0.6325484,2640.4,2640.1,2.4256]
[1724034421961,2.65102,2640.5,2640.1,2.4256]
[1724034423437,2.65112,2640.4,2640.1,2.4256]
[1724034424762,5.3023,2640.4,2640.1,2.4256]
[1724034425079,3.18146,2640.3,2640.1,2.4256]
[1724034426900,0.53023,2640.3,2640.1,2.4256]
[1724034427121,2.65103,2640.5,2640.1,2.4256]
[1724034429573,5.30213,2640.5,2640.1,2.4256]
[1724034429807,2.65111,2640.4,2640.1,2.4256]
[1724034433000,5.3023,2640.4,2640.1,2.4256]
[1724034433173,0.53023,2640.3,2640.1,2.4256]
[1724034433371,2.65111,2640.4,2640.1,2.4256]
[1724034435610,2.65101,2640.5,2640.1,2.4256]
[1724034437214,2.65111,2640.4,2640.1,2.4256]
[1724034437387,0.265111,2640.3,2640.1,2.4256]
[1724034439008,2.65083,2640.7,2640.2,1.617]
[1724034439211,2.65074,2640.8,2640.3,2.4438]
[1724034439419,0.792914,2640.7,2640.3,2.4438]
[1724034439577,0.792914,2640.7,2640.2,1.617]
[1724034439578,2.65074,2640.8,2640.4,1.617]
[1724034439910,0.04451088,2640.7,2640.4,2.4438]
[1724034440410,2.65074,2640.8,2640.4,4.0608]
[1724034440783,0.0428855,2640.7,2640.4,4.0608]
[1724034440992,2.65074,2640.8,2640.4,4.0608]
[1724034441317,0.0428855,2640.7,2640.4,4.0608]
[1724034441813,0.04280564,2640.6,2640.4,4.0608]
[1724034441971,2.65074,2640.8,2640.4,4.0608]
[1724034442176,0.0428855,2640.7,2640.4,4.0608]
[1724034442400,3.180868,2640.8,2640.4,2.4438]
[1724034442590,2.65097,2640.6,2640.2,2.4585]
[1724034442787,0.04287981,2640.5,2640.2,2.4585]
[1724034443514,0.04287981,2640.5,2640.2,4.0755]
[1724034443714,2.65112,2640.4,2640.2,4.0755]
[1724034444116,0.04261214,2640.3,2640.2,4.0755]
[1724034444490,0.31198535,2640.3,2639.8,2.4585]
[1724034444693,2.65147,2640.1,2639.8,2.4585]
[1724034445141,2.65139,2640.2,2639.8,2.4585]
[1724034445142,0.04248733,2640.0,2639.8,4.0755]
[1724034445459,2.65138,2640.2,2639.8,4.0755]
[1724034446063,0.04245927,2640.1,2639.8,4.0755]
[1724034446263,0.04245927,2640.1,2639.9,2.4585]
[1724034446624,2.65125,2640.3,2639.9,2.4585]
[1724034446839,0.04253186,2640.2,2639.9,2.4585]
[1724034447061,2.65125,2640.3,2639.9,2.4585]
[1724034447260,0.04245197,2640.1,2639.9,2.4585]
[1724034447549,0.04237208,2640.0,2639.9,2.4585]
[1724034448666,2.65125,2640.3,2639.9,2.4585]
[1724034448876,0.04237208,2640.0,2639.9,2.4585]
[1724034449049,2.65125,2640.3,2639.9,2.4585]
[1724034449255,0.04237208,2640.0,2639.9,2.4585]
[1724034449552,2.65106,2640.5,2639.9,2.4585]
[1724034449753,2.65106,2640.5,2640.0,1.617]
[1724034450147,0.04268918,2640.4,2640.0,1.617]
[1724034450480,2.65123,2640.3,2639.9,2.4585]
[1724034450665,2.65132,2640.2,2639.9,2.4585]
[1724034450851,0.04263737,2640.2,2639.9,2.4585]
[1724034451058,2.52643737,2640.2,2639.6,2.4928]
[1724034451271,2.65167,2639.9,2639.4,2.4928]
[1724034451477,2.65182,2639.7,2639.4,4.1098]
[1724034451790,2.65165,2639.9,2639.4,4.1098]
[1724034451955,2.65172,2639.8,2639.4,4.1098]
[1724034452161,2.65184,2639.7,2639.4,4.1098]
[1724034452360,2.92106806,2639.9,2639.4,4.1098]
[1724034452760,5.57275806,2639.9,2639.4,4.1098]
[1724034452958,2.87106806,2639.9,2639.4,4.1098]
[1724034453369,2.65155,2640.0,2639.4,6.76187]
[1724034453575,2.65155,2640.0,2639.7,2.3617]
[1724034454492,0.04217638,2639.9,2639.7,2.3617]
[1724034454786,2.65151,2640.0,2639.7,2.3617]
[1724034454943,0.04217638,2639.9,2639.7,2.3617]
[1724034455566,2.65144,2640.1,2639.7,2.3617]
[1724034455766,0.04225628,2640.0,2639.7,2.3617]
[1724034455974,0.04225628,2640.0,2639.8,1.617]
[1724034456644,2.65122,2640.3,2639.8,1.617]
[1724034456859,2.69365023,2640.2,2639.8,1.617]
[1724034457082,0.04228023,2640.2,2639.8,1.617]
[1724034457499,5.30253,2640.3,2639.8,1.617]
[1724034457685,0.04220034,2640.1,2639.8,1.617]
[1724034457890,2.69362023,2640.2,2639.8,1.617]
[1724034458063,0.04212044,2640.0,2639.8,1.617]
[1724034458385,2.69361034,2640.1,2639.7,2.3617]
[1724034458589,2.65141,2640.1,2639.7,2.3617]
[1724034458883,0.04071642,2640.0,2639.7,2.3617]
[1724034461716,0.04071642,2640.0,2639.4,2.3707]
[1724034461717,0.30992906,2640.0,2639.4,2.3707]
[1724034461854,2.65184,2639.7,2639.4,2.3707]
[1724034462368,0.0405092,2639.6,2639.4,2.3707]
[1724034463780,0.0405092,2639.6,2639.4,3.9877]
[1724034463984,2.65184,2639.7,2639.4,3.9877]
[1724034464928,2.65146,2640.1,2639.5,2.3707]
[1724034465428,0.04082196,2640.0,2639.5,2.3707]
[1724034465928,2.69234196,2640.0,2639.5,2.3707]
[1724034466127,2.69234196,2640.0,2639.6,1.617]
[1724034466437,2.69234196,2640.0,2639.7,2.3707]
[1724034467195,0.04082196,2640.0,2639.7,2.3707]
[1724034467549,2.65113,2640.4,2639.9,2.3707]
[1724034467721,2.65131,2640.2,2639.9,2.3707]
[1724034469287,0.0379,2640.1,2639.9,2.3707]
[1724034472344,0.0379,2640.1,2639.9,2.60777]
[1724034472695,5.30235,2640.4,2639.9,2.60777]
[1724034472895,0.03660558,2640.0,2639.9,2.60777]
[1724034473347,2.65121,2640.3,2639.9,2.60777]
[1724034473487,0.03660558,2640.0,2639.9,2.60777]
[1724034473693,2.65121,2640.3,2639.9,2.60777]
[1724034473894,0.03660558,2640.0,2639.9,2.60777]
[1724034474222,0.03660558,2640.0,2639.9,2.3707]
[1724034474733,2.65134,2640.2,2639.9,2.3707]
[1724034474939,0.03660558,2640.0,2639.9,2.3707]
[1724034475092,2.65134,2640.2,2639.9,2.3707]
[1724034475292,0.03669555,2640.0,2639.9,2.3707]
[1724034475825,5.30235,2640.4,2639.9,2.3707]
[1724034475995,0.03693521,2640.3,2639.9,2.3707]
[1724034477948,0.03693521,2640.3,2640.2,3.8745]
[1724034478132,0.03693521,2640.3,2640.2,9.17712]
[1724034478333,7.29,2640.7,2640.3,2.65114]
[1724034478543,7.29,2640.7,2640.6,2.2575]
[1724034480521,2.65041,2641.1,2640.6,2.2575]
[1724034481058,2.65057,2641.0,2640.6,2.2575]
[1724034481209,2.65061,2640.9,2640.6,2.2575]
[1724034481414,2.65073,2640.8,2640.6,2.2575]
[1724034481612,2.65081,2640.7,2640.6,2.2575]
[1724034481862,2.68550649,2640.7,2640.4,2.3071]
[1724034482032,2.65091,2640.6,2640.4,2.3071]
[1724034482232,0.03453679,2640.5,2640.4,2.3071]
[1724034482397,2.65111,2640.4,2640.2,2.3071]
[1724034482834,0.03444899,2640.3,2640.2,2.3071]
[1724034483008,0.03444899,2640.3,2639.9,2.326]
[1724034483231,2.65133,2640.2,2639.9,2.326]
[1724034483559,0.03400148,2640.1,2639.9,2.326]
[1724034484131,2.68541148,2640.1,2639.9,2.326]
[1724034485057,0.03400148,2640.1,2639.9,2.326]
[1724034485252,2.9198359,2640.3,2639.9,2.326]
[1724034485400,0.03434616,2640.2,2639.9,2.326]
[1724034485609,2.65132,2640.2,2639.9,2.326]
[1724034485828,0.03426628,2640.1,2639.9,2.326]
[1724034486658,0.2685559,2640.3,2639.9,2.326]
[1724034486840,0.03415088,2640.2,2639.9,2.326]
[1724034487057,5.30236,2640.4,2639.9,2.326]
[1724034487225,2.68545076,2640.3,2639.9,2.326]
[1724034487559,3.21911184,2640.3,2639.9,2.326]
[1724034488871,0.03423076,2640.3,2639.9,2.326]
[1724034489463,0.03423076,2640.3,2640.0,2.65146]
[1724034489664,2.65095,2640.6,2640.0,2.65146]
[1724034489884,0.03439131,2640.5,2640.0,2.65146]
[1724034490559,0.03439131,2640.5,2640.1,2.36]
[1724034491636,2.68541131,2640.5,2640.1,2.36]
[1724034491837,2.68541131,2640.5,2640.0,2.65146]
[1724034491838,0.03439131,2640.5,2640.2,2.6513]
[1724034492168,5.30074,2641.2,2640.5,2.651]
[1724034492325,2.65042,2641.1,2640.5,5.011]
[1724034492529,2.65042,2641.1,2640.5,2.36]
[1724034492728,2.65061,2640.9,2640.5,2.36]
[1724034493266,0.03475335,2640.8,2640.5,2.36]
[1724034493631,5.30112,2641.0,2640.5,2.36]
[1724034493826,0.03483319,2640.9,2640.5,2.36]
[1724034494229,2.65074,2640.8,2640.5,2.36]
[1724034494533,0.03467351,2640.7,2640.5,2.36]
[1724034494850,2.65074,2640.8,2640.5,2.36]
[1724034495054,0.03467351,2640.7,2640.5,2.36]
[1724034495354,2.65074,2640.8,2640.5,2.36]
[1724034495571,0.03459366,2640.6,2640.5,2.36]
[1724034496169,3.180868,2640.8,2640.5,2.36]
[1724034496639,0.03467351,2640.7,2640.5,2.36]
[1724034496837,3.180868,2640.8,2640.5,2.36]
[1724034497036,0.03467351,2640.7,2640.5,2.36]
[1724034497237,3.180868,2640.8,2640.5,2.36]
[1724034497471,3.180868,2640.8,2640.2,2.65127]
[1724034497472,0.35276031,2640.7,2640.2,2.65127]
[1724034497673,3.00357031,2640.7,2640.3,2.3875]
[1724034497992,3.00357031,2640.7,2639.8,5.03916]
[1724034497993,2.65111,2640.4,2639.8,5.03916]
[1724034498138,3.21640103,2640.6,2639.9,2.65154]
[1724034498338,5.30195,2640.6,2640.1,2.3875]
[1724034498537,2.6856317,2640.5,2640.1,2.3875]
[1724034499411,5.3367217,2640.5,2640.1,2.3875]
[1724034499544,0.53367217,2640.4,2640.1,2.3875]
[1724034500043,0.03446198,2640.3,2640.1,2.3875]
[1724034500994,0.03446198,2640.3,2639.8,2.3188]
[1724034500995,2.68568198,2640.3,2639.8,2.3188]
[1724034501512,2.65134,2640.2,2639.8,2.3188]
[1724034501806,0.3563974,2640.3,2639.8,2.3188]
[1724034501807,0.03446198,2640.3,2639.8,2.3188]
[1724034501975,0.03411955,2640.1,2639.8,2.3188]
[1724034502176,0.03419943,2640.2,2639.8,2.3188]
[1724034502381,2.65106,2640.5,2639.8,2.3188]
[1724034502593,0.03411955,2640.1,2639.8,2.3188]
[1724034502910,2.65122,2640.3,2639.8,2.3188]
[1724034503410,0.0341978,2640.2,2639.8,2.3188]
[1724034503712,2.65122,2640.3,2639.8,2.3188]
[1724034503878,0.03411792,2640.1,2639.8,4.9705]
[1724034504057,2.65122,2640.3,2639.8,4.9705]
[1724034504258,0.0341978,2640.2,2639.8,4.9705]
[1724034504570,2.65106,2640.5,2639.9,2.65152]
[1724034504777,0.03411792,2640.1,2640.0,2.65151]
[1724034505154,2.65106,2640.5,2640.0,2.65151]
[1724034505493,0.03435755,2640.4,2640.0,2.65151]
[1724034505900,0.03435755,2640.4,2640.1,2.3204]
[1724034506419,2.65097,2640.6,2640.1,2.3204]
[1724034506562,0.03427768,2640.3,2640.1,2.3204]
[1724034506917,0.0341978,2640.2,2640.1,2.3204]
[1724034507381,2.65107,2640.5,2640.1,2.3204]
[1724034507565,0.0341978,2640.2,2639.8,2.3204]
[1724034507761,2.65133,2640.2,2639.8,2.3204]
[1724034507965,3.4468237,2640.4,2639.8,2.3204]
[1724034507966,0.03411792,2640.1,2639.8,2.3204]
[1724034508379,2.65122,2640.3,2639.8,2.3204]
[1724034508611,0.03403803,2640.0,2639.8,2.3204]
[1724034508946,2.65152,2640.0,2639.5,4.31551213]
[1724034509242,0.03395814,2639.9,2639.5,4.99071]
[1724034509588,3.420245,2640.0,2639.5,4.99071]
[1724034509787,0.03406528,2639.9,2639.5,2.3387]
[1724034510029,2.65173,2639.8,2639.3,4.31562513]
[1724034510254,2.65173,2639.8,2639.3,2.3387]
[1724034510536,0.03390548,2639.7,2639.3,2.3387]
[1724034510901,2.65173,2639.8,2639.3,2.3387]
[1724034511102,0.03382557,2639.6,2639.3,2.3387]
[1724034511430,0.03390548,2639.7,2639.3,2.3387]
[1724034511631,2.65173,2639.8,2639.3,2.3387]
[1724034511632,0.03374566,2639.5,2639.3,2.3387]
[1724034511839,2.65173,2639.8,2639.3,2.3387]
[1724034512435,0.03403872,2639.7,2639.3,2.3387]
[1724034512938,0.03395882,2639.6,2639.3,2.3387]
[1724034513298,2.65173,2639.8,2639.3,2.3387]
[1724034513493,5.30352,2639.8,2639.3,2.3387]
[1724034513694,0.03401238,2639.7,2639.3,2.3387]
[1724034513923,2.68584238,2639.7,2639.3,2.3387]
[1724034514220,0.53375724,2639.7,2639.3,2.3387]
[1724034514422,2.65173,2639.8,2639.3,2.3387]
[1724034514423,0.03395808,2639.6,2639.3,2.3387]
[1724034514829,2.65173,2639.8,2639.3,2.3387]
[1724034515205,0.03403677,2639.7,2639.3,2.3387]
[1724034515528,2.65173,2639.8,2639.3,2.3387]
[1724034515720,0.03395687,2639.6,2639.3,2.3387]
[1724034515893,0.03403677,2639.7,2639.3,2.3387]
[1724034516094,2.65173,2639.8,2639.3,2.3387]
[1724034516295,0.03403718,2639.7,2639.3,2.3387]
[1724034516616,0.03395728,2639.6,2639.3,2.3387]
[1724034516799,2.65173,2639.8,2639.3,2.3387]
[1724034517098,0.03403718,2639.7,2639.3,2.3387]
[1724034517299,2.65173,2639.8,2639.3,2.3387]
[1724034517494,0.03403718,2639.7,2639.3,2.3387]
[1724034517699,2.65173,2639.8,2639.3,2.3387]
[1724034517899,0.03403718,2639.7,2639.3,2.3387]
[1724034518100,2.65173,2639.8,2639.3,2.3387]
[1724034518437,0.03403718,2639.7,2639.3,2.3387]
[1724034518605,2.65173,2639.8,2639.3,2.3387]
[1724034518939,0.03392924,2639.7,2639.3,2.3387]
[1724034519106,2.65209,2639.5,2639.0,2.4027]
[1724034519292,2.65197,2639.6,2639.0,5.05521]
[1724034519493,0.03376942,2639.5,2639.0,5.05521]
[1724034520500,0.03376942,2639.5,2639.2,1.615]
[1724034520701,2.68579942,2639.5,2639.2,1.615]
[1724034521299,0.03376942,2639.5,2639.2,1.615]
[1724034521501,2.68578942,2639.5,2639.2,1.615]
[1724034521837,3.45954536,2639.5,2639.2,1.615]
[1724034522446,3.45954536,2639.5,2639.0,2.4027]
[1724034522734,2.65227,2639.3,2639.0,2.4027]
[1724034523094,0.03359028,2639.2,2639.0,2.4027]
[1724034523298,0.53381503,2639.2,2638.6,5.3057]
[1724034523546,0.0335067,2639.1,2638.7,4.0989]
[1724034523752,0.0335067,2639.1,2638.7,2.4839]
[1724034523915,0.0335067,2639.1,2638.8,1.615]
[1724034524256,2.65227,2639.3,2638.8,1.615]
[1724034524399,0.03337237,2639.0,2638.8,1.615]
[1724034524603,2.65227,2639.3,2638.8,1.615]
[1724034525035,0.03353225,2639.2,2638.8,1.615]
[1724034525199,2.65227,2639.3,2638.8,1.615]
[1724034525404,0.03353225,2639.2,2638.8,1.615]
[1724034525739,2.65227,2639.3,2638.8,1.615]
[1724034525953,0.03329034,2639.1,2638.8,1.615]
[1724034526103,0.03337028,2639.2,2638.7,2.4839]
[1724034526305,0.29859728,2639.2,2638.7,4.0989]
[1724034527157,2.65249,2639.1,2638.7,4.0989]
[1724034527505,0.0333681,2639.0,2638.7,4.0989]
[1724034527715,2.65209,2639.5,2639.0,2.4845]
[1724034528666,2.65222,2639.3,2639.0,2.4845]
[1724034529015,2.65222,2639.3,2638.8,2.4845]
[1724034529016,2.65233,2639.2,2638.8,2.4845]